fUSD/lending_fUSD_20250620
["ID","MTS","AMOUNT","RATE_DAILY","PERIOD"]
[366697497,1750415475336,-507.19,0.00025763,4]
[366697498,1750415475345,-490.0,0.00025763,4]
[366697499,1750415475356,-490.0,0.00025763,4]
[366697500,1750415475366,-490.0,0.00025763,4]
[366697501,1750415475376,-584.6,0.00025763,4]
[366697502,1750415475385,-490.0,0.00025763,4]
[366697503,1750415475395,-490.0,0.00025763,4]
[366697504,1750415475404,-490.0,0.00025763,4]
[366697505,1750415475415,-490.0,0.00025763,4]
[366697506,1750415475424,-490.0,0.00025763,4]
[366697507,1750415475434,-490.0,0.00025763,4]
[366697508,1750415475443,-490.0,0.00025763,4]
[366697509,1750415475453,-490.0,0.00025763,4]
[366697510,1750415475463,-490.0,0.00025763,4]
[366697511,1750415475472,-490.0,0.00025763,4]
[366697512,1750415475482,-584.193166,0.00025763,7]
[366697513,1750415475492,-490.0,0.00025763,4]
[366697514,1750415475502,-304.25,0.00025763,4]
[366697515,1750415475512,-490.0,0.00025763,4]
[366697516,1750415475522,-584.193166,0.00025763,7]
[366697517,1750415475531,-490.0,0.00025763,4]
[366697518,1750415475541,-294.655675,0.00025763,7]
[366697519,1750415475551,-490.0,0.00025763,4]
[366697520,1750415475561,-294.655675,0.00025763,7]
[366697521,1750415475570,-624.83,0.00025763,4]
[366697522,1750415475579,-490.0,0.00025763,4]
[366697523,1750415475589,-490.0,0.00025763,4]
[366697524,1750415475599,-490.0,0.00025763,4]
[366697525,1750415475608,-947.23,0.00025763,4]
[366697526,1750415475618,-497.34,0.00025763,4]
[366697527,1750415475628,-1160.0,0.00025763,4]
[366697528,1750415475638,-682.25,0.00025763,4]
[366697529,1750415475647,-259.02212287,0.00025763,4]
[366697530,1750415475657,-676.69,0.00025763,4]
[366697531,1750415475668,-490.0,0.00025763,4]
[366697532,1750415475677,-798.57,0.00025763,4]
[366697533,1750415475688,-1979.221241,0.00025763,7]
[366697534,1750415475698,-1979.221241,0.00025763,7]
[366697535,1750415475708,-490.0,0.00025763,4]
[366697536,1750415475718,-490.0,0.00025763,4]
[366697537,1750415475728,-490.0,0.00025763,4]
[366697538,1750415475738,-344.384195,0.00025763,7]
[366697539,1750415475749,-490.0,0.00025763,4]
[366697540,1750415475758,-439.198607,0.00025763,7]
[366697541,1750415475768,-344.384195,0.00025763,7]
[366697542,1750415475778,-490.0,0.00025763,4]
[366697543,1750415475788,-439.198607,0.00025763,7]
[366697544,1750415475797,-490.0,0.00025763,4]
[366697545,1750415475807,-490.0,0.00025763,4]
[366697546,1750415475817,-490.0,0.00025763,4]
[366697547,1750415475826,-490.0,0.00025763,4]
[366697548,1750415475836,-994.26,0.00025763,4]
[366697549,1750415475846,-492.677088,0.00025763,7]
[366697550,1750415475856,-490.0,0.00025763,4]
[366697551,1750415475866,-490.0,0.00025763,4]
[366697552,1750415475876,-201.015627,0.00025763,7]
[366697553,1750415475886,-492.677088,0.00025763,7]
[366697554,1750415475896,-201.015627,0.00025763,7]
[366697555,1750415475906,-504.86,0.00025763,4]
[366697556,1750415475915,-490.0,0.00025763,4]
[366697557,1750415475925,-1262.16,0.00025763,4]
[366697558,1750415475936,-224.030406,0.00025763,7]
[366697559,1750415475946,-490.0,0.00025763,4]
[366697560,1750415475956,-300.0,0.00025763,4]
[366697561,1750415475966,-526.89,0.00025763,4]
[366697562,1750415475976,-490.0,0.00025763,4]
[366697563,1750415475986,-490.0,0.00025763,4]
[366697564,1750415475996,-224.030406,0.00025763,7]
[366697565,1750415476006,-562.08,0.00025763,4]
[366697566,1750415476016,-490.0,0.00025763,4]
[366697567,1750415476026,-545.75,0.00025763,4]
[366697568,1750415476036,-1061.69,0.00025763,4]
[366697569,1750415476046,-490.0,0.00025763,4]
[366697570,1750415476056,-809.96,0.00025763,4]
[366697571,1750415476066,-631.0,0.00025763,4]
[366697572,1750415476077,-1378.13,0.00025763,4]
[366697573,1750415476087,-490.0,0.00025763,4]
[366697574,1750415476097,-490.0,0.00025763,4]
[366697575,1750415476107,-490.0,0.00025763,4]
[366697576,1750415476117,-490.0,0.00025763,4]
[366697577,1750415476128,-490.0,0.00025763,4]
[366697578,1750415476500,-559.26,0.00025763,4]
[366697579,1750415476519,-490.0,0.00025763,4]
[366697580,1750415476529,-490.0,0.00025763,4]
[366697581,1750415476539,-707.03,0.00025763,4]
[366697582,1750415476548,-473.34527918,0.00025763,4]
[366697583,1750415476558,-490.0,0.00025763,4]
[366697584,1750415476567,-490.0,0.00025763,4]
[366697585,1750415476577,-2021.51,0.00025763,4]
[366697586,1750415476587,-547.36,0.00025763,4]
[366697587,1750415476596,-1831.85,0.00025763,4]
[366697588,1750415476606,-606.95,0.00025763,4]
[366697589,1750415476615,-490.0,0.00025763,4]
[366697590,1750415476625,-1476.65,0.00025763,4]
[366697591,1750415476634,-151.0,0.00025763,7]
[366697592,1750415476644,-490.0,0.00025763,4]
[366697593,1750415476654,-3374.102372,0.00025763,7]
[366697594,1750415476663,-490.0,0.00025763,4]
[366697595,1750415476673,-490.0,0.00025763,4]
[366697596,1750415476683,-3374.102372,0.00025763,7]
[366697597,1750415476693,-490.0,0.00025763,4]
[366697598,1750415476703,-490.0,0.00025763,4]
[366697599,1750415476712,-490.0,0.00025763,4]
[366697600,1750415476722,-490.0,0.00025763,4]
[366697601,1750415476731,-600.95,0.00025763,4]
[366697602,1750415476741,-470.14335535,0.00025763,4]
[366697603,1750415476751,-1005.12,0.00025763,4]
[366697604,1750415476761,-1516.56,0.00025763,4]
[366697605,1750415476771,-490.0,0.00025763,4]
[366697606,1750415476780,-490.0,0.00025763,4]
[366697607,1750415476790,-490.0,0.00025763,4]
[366697608,1750415476800,-490.0,0.00025763,4]
[366697609,1750415476810,-490.0,0.00025763,4]
[366697610,1750415476820,-302.3,0.00025763,4]
[366697611,1750415476830,-490.0,0.00025763,4]
[366697612,1750415476840,-490.0,0.00025763,4]
[366697613,1750415476849,-1853.92,0.00025763,4]
[366697614,1750415476859,-490.0,0.00025763,4]
[366697615,1750415476870,-490.0,0.00025763,4]
[366697616,1750415476880,-1207.48,0.00025763,4]
[366697617,1750415476889,-970.42,0.00025763,4]
[366697618,1750415476899,-155.529264,0.00025763,7]
[366697619,1750415476909,-490.0,0.00025763,4]
[366697620,1750415476919,-1085.47,0.00025763,4]
[366697621,1750415476929,-555.86,0.00025763,4]
[366697622,1750415476940,-155.529264,0.00025763,7]
[366697623,1750415476950,-151.0,0.00025763,7]
[366697624,1750415476960,-1321.89,0.00025763,4]
[366697625,1750415476970,-151.0,0.00025763,7]
[366697626,1750415476979,-490.0,0.00025763,4]
[366697627,1750415476990,-907.27,0.00025763,4]
[366697628,1750415477000,-490.0,0.00025763,4]
[366697629,1750415477010,-10000.0,0.00025763,7]
[366697630,1750415477020,-490.0,0.00025763,4]
[366697631,1750415477030,-490.0,0.00025763,4]
[366697632,1750415477040,-10000.0,0.00025763,7]
[366697633,1750415477050,-490.0,0.00025763,4]
[366697634,1750415477060,-490.0,0.00025763,4]
[366697635,1750415477070,-10000.0,0.00025763,7]
[366697636,1750415477082,-490.0,0.00025763,4]
[366697637,1750415477093,-10000.0,0.00025763,7]
[366697638,1750415477103,-490.0,0.00025763,4]
[366697639,1750415477113,-490.0,0.00025763,4]
[366697640,1750415477123,-490.0,0.00025763,4]
[366697641,1750415477134,-1835.37,0.00025763,4]
[366697642,1750415477144,-490.0,0.00025763,4]
[366697643,1750415477155,-490.0,0.00025763,4]
[366697644,1750415477166,-1052.99,0.00025763,4]
[366697645,1750415477176,-556.59,0.00025763,4]
[366697646,1750415477187,-490.0,0.00025763,4]
[366697647,1750415477196,-567.01,0.00025763,4]
[366697648,1750415477206,-492.0,0.00025763,4]
[366697649,1750415477216,-209.914755,0.00025763,7]
[366697650,1750415477227,-819.36,0.00025763,4]
[366697651,1750415477237,-276.108613,0.00025763,7]
[366697652,1750415477247,-2175.07,0.00025763,4]
[366697653,1750415477257,-151.0,0.00025763,7]
[366697654,1750415477275,-490.0,0.00025763,4]
[366697655,1750415477286,-276.108613,0.00025763,7]
[366697656,1750415477296,-789.56,0.00025763,4]
[366697657,1750415477309,-209.914755,0.00025763,7]
[366697658,1750415477320,-243.405194,0.00025763,7]
[366697659,1750415477331,-1474.82,0.00025763,4]
[366697660,1750415477342,-370.729428,0.00025763,7]
[366697661,1750415477352,-490.0,0.00025763,4]
[366697662,1750415477364,-243.405194,0.00025763,7]
[366697663,1750415477374,-370.729428,0.00025763,7]
[366697664,1750415477385,-490.0,0.00025763,4]
[366697665,1750415477396,-1752.57,0.00025763,4]
[366697666,1750415477407,-490.0,0.00025763,4]
[366697667,1750415477418,-490.0,0.00025763,4]
[366697668,1750415477429,-490.0,0.00025763,4]
[366697669,1750415477440,-490.0,0.00025763,4]
[366697670,1750415477451,-2581.66,0.00025763,4]
[366697671,1750415477462,-490.0,0.00025763,4]
[366697672,1750415477473,-1705.52,0.00025763,4]
[366697673,1750415477483,-490.0,0.00025763,4]
[366697674,1750415477494,-490.0,0.00025763,4]
[366697675,1750415477505,-212.479122,0.00025763,7]
[366697676,1750415477516,-1306.7,0.00025763,4]
[366697677,1750415477526,-151.0,0.00025763,7]
[366697678,1750415477537,-490.0,0.00025763,4]
[366697679,1750415477547,-212.479122,0.00025763,7]
[366697680,1750415477558,-525.6,0.00025763,4]
[366697681,1750415477568,-151.0,0.00025763,7]
[366697682,1750415477579,-490.0,0.00025763,4]
[366697683,1750415477590,-737.94,0.00025763,4]
[366697684,1750415477600,-490.0,0.00025763,4]
[366697685,1750415477611,-490.0,0.00025763,4]
[366697686,1750415477621,-985.154821,0.00025763,7]
[366697687,1750415477632,-490.0,0.00025763,4]
[366697688,1750415477643,-985.154821,0.00025763,7]
[366697689,1750415477654,-616.11,0.00025763,4]
[366697690,1750415477664,-749.2,0.00025763,4]
[366697691,1750415477675,-490.0,0.00025763,4]
[366697692,1750415477686,-490.0,0.00025763,4]
[366697693,1750415477703,-151.0,0.00025763,7]
[366697694,1750415477715,-730.634615,0.00025763,7]
[366697695,1750415477727,-733.41,0.00025763,4]
[366697696,1750415477738,-1450.49,0.00025763,4]
[366697697,1750415477750,-490.0,0.00025763,4]
[366697698,1750415477761,-730.634615,0.00025763,7]
[366697699,1750415477773,-165.416883,0.00025763,7]
[366697700,1750415477784,-2517.34,0.00025763,4]
[366697701,1750415477795,-490.0,0.00025763,4]
[366697702,1750415477806,-490.0,0.00025763,4]
[366697703,1750415477817,-647.98,0.00025763,4]
[366697704,1750415477827,-1420.61,0.00025763,4]
[366697705,1750415477838,-630.14934902,0.00025763,4]
[366697706,1750415477850,-666.21,0.00025763,4]
[366697707,1750415477862,-490.0,0.00025763,4]
[366697708,1750415477873,-798.3,0.00025763,4]
[366697709,1750415477884,-490.0,0.00025763,4]
[366697710,1750415477895,-490.0,0.00025763,4]
[366697711,1750415477906,-490.0,0.00025763,4]
[366697712,1750415477917,-490.0,0.00025763,4]
[366697713,1750415477928,-490.0,0.00025763,4]
[366697714,1750415477940,-490.0,0.00025763,4]
[366697715,1750415477951,-629.3,0.00025763,4]
[366697716,1750415477963,-744.22,0.00025763,4]
[366697717,1750415477974,-490.0,0.00025763,4]
[366697718,1750415477986,-500.0,0.00025763,4]
[366697719,1750415477997,-824.71,0.00025763,4]
[366697720,1750415478010,-490.0,0.00025763,4]
[366697721,1750415478022,-1579.86,0.00025763,4]
[366697722,1750415478033,-490.0,0.00025763,4]
[366697723,1750415478044,-490.0,0.00025763,4]
[366697724,1750415478055,-490.0,0.00025763,4]
[366697725,1750415478066,-1499.44,0.00025763,4]
[366697726,1750415478077,-509.05,0.00025763,4]
[366697727,1750415478088,-2238.49,0.00025763,4]
[366697728,1750415478100,-490.0,0.00025763,4]
[366697729,1750415478111,-490.0,0.00025763,4]
[366697730,1750415478122,-597.0,0.00025763,4]
[366697731,1750415478139,-490.0,0.00025763,4]
[366697732,1750415478150,-490.0,0.00025763,4]
[366697733,1750415478161,-490.0,0.00025763,4]
[366697734,1750415478171,-1038.4,0.00025763,4]
[366697735,1750415478182,-933.51,0.00025763,4]
[366697736,1750415478194,-1180.663306,0.00025763,7]
[366697737,1750415478205,-178.980671,0.00025763,7]
[366697738,1750415478216,-490.0,0.00025763,4]
[366697739,1750415478227,-1180.663306,0.00025763,7]
[366697740,1750415478238,-178.980671,0.00025763,7]
[366697741,1750415478249,-490.0,0.00025763,4]
[366697742,1750415478260,-822.58,0.00025763,4]
[366697743,1750415478272,-838.77,0.00025763,4]
[366697744,1750415478283,-504.68,0.00025763,4]
[366697745,1750415478294,-490.0,0.00025763,4]
[366697746,1750415478306,-507.81,0.00025763,4]
[366697747,1750415478318,-490.0,0.00025763,4]
[366697748,1750415478328,-151.0,0.00025763,7]
[366697749,1750415478339,-490.0,0.00025763,4]
[366697750,1750415478350,-572.5,0.00025763,4]
[366697751,1750415478361,-490.0,0.00025763,4]
[366697752,1750415478372,-490.0,0.00025763,4]
[366697753,1750415478382,-7206.413036,0.00025763,7]
[366697754,1750415478392,-1129.55,0.00025763,4]
[366697755,1750415478403,-858.91,0.00025763,4]
[366697756,1750415478414,-7206.413036,0.00025763,7]
[366697757,1750415478424,-490.0,0.00025763,4]
[366697758,1750415478435,-395.705153,0.00025763,7]
[366697759,1750415478446,-800.69,0.00025763,4]
[366697760,1750415478457,-1036.77,0.00025763,4]
[366697761,1750415478467,-395.705153,0.00025763,7]
[366697762,1750415478477,-611.30443395,0.00025763,4]
[366697763,1750415478487,-490.0,0.00025763,4]
[366697764,1750415478498,-1310.63,0.00025763,4]
[366697765,1750415478508,-490.0,0.00025763,4]
[366697766,1750415478519,-867.83,0.00025763,4]
[366697767,1750415478530,-545.19,0.00025763,4]
[366697768,1750415478540,-1236.78,0.00025763,4]
[366697769,1750415478550,-490.0,0.00025763,4]
[366697770,1750415478562,-490.0,0.00025763,4]
[366697771,1750415478574,-490.0,0.00025763,4]
[366697772,1750415478585,-490.0,0.00025763,4]
[366697773,1750415478596,-2496.698892,0.00025763,7]
[366697774,1750415478607,-490.0,0.00025763,4]
[366697775,1750415478618,-509.27,0.00025763,4]
[366697776,1750415478628,-2496.698892,0.00025763,7]
[366697777,1750415478639,-490.0,0.00025763,4]
[366697778,1750415478650,-490.0,0.00025763,4]
[366697779,1750415478660,-242.497975,0.00025763,7]
[366697780,1750415478671,-1804.01,0.00025763,4]
[366697781,1750415478682,-242.497975,0.00025763,7]
[366697782,1750415478692,-490.0,0.00025763,4]
[366697783,1750415478703,-490.0,0.00025763,4]
[366697784,1750415478714,-490.0,0.00025763,4]
[366697785,1750415478725,-1718.47,0.00025763,4]
[366697786,1750415478735,-500.0,0.00025763,4]
[366697787,1750415478746,-151.0,0.00025763,7]
[366697788,1750415478756,-490.0,0.00025763,4]
[366697789,1750415478766,-528.49,0.00025763,4]
[366697790,1750415478777,-226.355101,0.00025763,7]
[366697791,1750415478787,-226.355101,0.00025763,7]
[366697792,1750415478798,-490.0,0.00025763,4]
[366697793,1750415478808,-808.69,0.00025763,4]
[366697794,1750415478827,-168.834443,0.00025763,7]
[366697795,1750415478842,-490.0,0.00025763,4]
[366697796,1750415478854,-168.834443,0.00025763,7]
[366697797,1750415478865,-490.0,0.00025763,4]
[366697798,1750415478877,-399.114272,0.00025763,7]
[366697799,1750415478889,-490.0,0.00025763,4]
[366697800,1750415478899,-399.114272,0.00025763,7]
[366697801,1750415478910,-490.0,0.00025763,4]
[366697802,1750415478921,-726.13,0.00025763,4]
[366697803,1750415478931,-821.954408,0.00025763,7]
[366697804,1750415478942,-821.954408,0.00025763,7]
[366697805,1750415478953,-490.0,0.00025763,4]
[366697806,1750415478964,-151.0,0.00025764,7]
[366697807,1750415478975,-151.0,0.00025764,7]
[366697808,1750415478986,-151.460912,0.00025764,7]
[366697809,1750415478997,-151.0,0.00025764,7]
[366697810,1750415479008,-151.0,0.00025764,7]
[366697811,1750415479019,-351.172876,0.00025764,7]
[366697812,1750415479030,-351.172876,0.00025764,7]
[366697813,1750415479041,-274.173819,0.00025764,7]
[366697814,1750415479051,-274.173819,0.00025764,7]
[366697815,1750415479062,-2551.478634,0.00025764,7]
[366697816,1750415479074,-2551.478634,0.00025764,7]
[366697817,1750415479089,-151.0,0.00025764,7]
[366697818,1750415479100,-151.0,0.00025764,7]
[366697819,1750415479111,-151.0,0.00025764,7]
[366697820,1750415479377,-262.333288,0.00025764,7]
[366697821,1750415479389,-151.0,0.00025764,7]
[366697822,1750415479399,-151.0,0.00025764,7]
[366697823,1750415479409,-312.753519,0.00025764,7]
[366697824,1750415479420,-312.753519,0.00025764,7]
[366697825,1750415479430,-490.0,0.00025764,4]
[366697826,1750415479440,-151.0,0.00025764,7]
[366697827,1750415479450,-490.0,0.00025764,4]
[366697828,1750415479460,-924.0,0.00025764,4]
[366697829,1750415479470,-1308.218009,0.00025764,7]
[366697830,1750415479481,-1308.218009,0.00025764,7]
[366697831,1750415479492,-490.0,0.00025764,4]
[366697832,1750415479502,-542.88676066,0.00025764,4]
[366697833,1750415479524,-490.0,0.00025764,4]
[366697834,1750415479535,-490.0,0.00025764,4]
[366697835,1750415479545,-490.0,0.00025764,4]
[366697836,1750415479556,-205.587972,0.00025764,7]
[366697837,1750415479566,-490.0,0.00025764,4]
[366697838,1750415479576,-205.587972,0.00025764,7]
[366697839,1750415479586,-555.64,0.00025764,4]
[366697840,1750415479596,-265.133309,0.00025764,7]
[366697841,1750415479606,-490.0,0.00025764,4]
[366697842,1750415479616,-265.133309,0.00025764,7]
[366697843,1750415479625,-560.67,0.00025764,4]
[366697844,1750415479641,-714.6,0.00025764,4]
[366697845,1750415479651,-490.0,0.00025764,4]
[366697846,1750415479661,-490.0,0.00025764,4]
[366697847,1750415479671,-584.97,0.00025764,4]
[366697848,1750415479681,-490.0,0.00025764,4]
[366697849,1750415479692,-528.72,0.00025764,4]
[366697850,1750415479702,-490.0,0.00025764,4]
[366697851,1750415479713,-490.0,0.00025764,4]
[366697852,1750415479723,-490.0,0.00025764,4]
[366697853,1750415479732,-490.0,0.00025764,4]
[366697854,1750415479742,-490.0,0.00025764,4]
[366697855,1750415479752,-490.0,0.00025764,4]
[366697856,1750415479762,-490.0,0.00025764,4]
[366697857,1750415479772,-490.0,0.00025764,4]
[366697858,1750415479781,-490.0,0.00025764,4]
[366697859,1750415479791,-490.0,0.00025764,4]
[366697860,1750415479801,-595.37,0.00025764,4]
[366697861,1750415479812,-584.193166,0.00025764,7]
[366697862,1750415479822,-584.193166,0.00025764,7]
[366697863,1750415479832,-1979.221241,0.00025764,7]
[366697864,1750415479842,-1979.221241,0.00025764,7]
[366697865,1750415479852,-439.198607,0.00025764,7]
[366697866,1750415479863,-439.198607,0.00025764,7]
[366697867,1750415479873,-492.677088,0.00025764,7]
[366697868,1750415479883,-201.015627,0.00025764,7]
[366697869,1750415479892,-492.677088,0.00025764,7]
[366697870,1750415479902,-201.015627,0.00025764,7]
[366697871,1750415479912,-224.030406,0.00025764,7]
[366697872,1750415479922,-224.030406,0.00025764,7]
[366697873,1750415479932,-10000.0,0.00025764,7]
[366697874,1750415479941,-10000.0,0.00025764,7]
[366697875,1750415479951,-10000.0,0.00025764,7]
[366697876,1750415479961,-10000.0,0.00025764,7]
[366697877,1750415479971,-209.914755,0.00025764,7]
[366697878,1750415479981,-209.914755,0.00025764,7]
[366697879,1750415479990,-243.405194,0.00025764,7]
[366697880,1750415480000,-370.729428,0.00025764,7]
[366697881,1750415480011,-243.405194,0.00025764,7]
[366697882,1750415480021,-370.729428,0.00025764,7]
[366697883,1750415480032,-985.154821,0.00025764,7]
[366697884,1750415480043,-985.154821,0.00025764,7]
[366697885,1750415480053,-1180.663306,0.00025764,7]
[366697886,1750415480063,-178.980671,0.00025764,7]
[366697887,1750415480073,-178.980671,0.00025764,7]
[366697888,1750415480083,-1180.663306,0.00025764,7]
[366697889,1750415480095,-242.497975,0.00025764,7]
[366697890,1750415480107,-242.497975,0.00025764,7]
[366697891,1750415480116,-821.954408,0.00025764,7]
[366697892,1750415480128,-821.954408,0.00025764,7]
[366697893,1750415480139,-379.19163,0.00025765,7]
[366697894,1750415480150,-379.19163,0.00025765,7]
[366697895,1750415480161,-163.85551,0.00025765,7]
[366697896,1750415480171,-163.85551,0.00025765,7]
[366697897,1750415480182,-294.655675,0.00025765,7]
[366697898,1750415480192,-294.655675,0.00025765,7]
[366697899,1750415480203,-150.0,0.00025769,2]
[366697900,1750415480213,-500.0,0.00025773,2]
[366697901,1750415480223,-792.0,0.00025778,2]
[366697902,1750415480233,-69957.6623114,0.0002578,2]
[366697903,1750415480243,-204.966774,0.0002578,7]
[366697904,1750415480252,-959.767891,0.0002578,7]
[366697905,1750415480262,-959.767891,0.0002578,7]
[366697906,1750415480272,-151.0,0.0002578,7]
[366697907,1750415480282,-344.384195,0.0002578,7]
[366697908,1750415480291,-344.384195,0.0002578,7]
[366697909,1750415480301,-155.529264,0.0002578,7]
[366697910,1750415480311,-155.529264,0.0002578,7]
[366697911,1750415480322,-276.108613,0.0002578,7]
[366697912,1750415480332,-276.108613,0.0002578,7]
[366697913,1750415480341,-151.0,0.0002578,7]
[366697914,1750415480351,-151.0,0.0002578,7]
[366697915,1750415480361,-151.0,0.0002578,7]
[366697916,1750415480370,-7206.413036,0.0002578,7]
[366697917,1750415480380,-7206.413036,0.0002578,7]
[366697918,1750415480391,-151.0,0.0002578,7]
[366697919,1750415480401,-151.0,0.00025786,7]
[366697920,1750415480412,-1859.624859,0.00025786,7]
[366697921,1750415480422,-1859.624859,0.00025786,7]
[366697922,1750415480433,-500.0,0.00025793,4]
[366697923,1750415480442,-1038.4,0.00025793,4]
[366697924,1750415480452,-151.0,0.000258,7]
[366697925,1750415480462,-151.0,0.000258,7]
[366697926,1750415480472,-151.0,0.000258,7]
[366697927,1750415480482,-161.74,0.000258,2]
[366697928,1750415480492,-300.0,0.000258,2]
[366697929,1750415480502,-1296.61652358,0.00025806,2]
[366697930,1750415480511,-150.0,0.00025829,2]
[366697931,1750415480521,-311.3287456,0.00025844,2]
[366697932,1750415480530,-1166.66667,0.0002585,2]
[366697933,1750415480539,-215.0738,0.00025859,2]
[366697934,1750415480549,-1296.61652358,0.00025872,2]
[366697935,1750415480559,-151.0,0.00025872,7]
[366697936,1750415480569,-151.0,0.00025872,7]
[366697937,1750415480579,-379.19163,0.00025872,7]
[366697938,1750415480588,-379.19163,0.00025872,7]
[366697939,1750415480598,-163.85551,0.00025872,7]
[366697940,1750415480609,-163.85551,0.00025872,7]
[366697941,1750415480619,-217.618883,0.00025872,7]
[366697942,1750415480629,-212.479122,0.00025872,7]
[366697943,1750415480641,-212.479122,0.00025872,7]
[366697944,1750415480651,-730.634615,0.00025872,7]
[366697945,1750415480661,-730.634615,0.00025872,7]
[366697946,1750415480671,-395.705153,0.00025872,7]
[366697947,1750415480681,-395.705153,0.00025872,7]
[366697948,1750415480692,-150.0,0.00025874,2]
[366697949,1750415480702,-500.0,0.0002588,4]
[366697950,1750415480711,-500.0,0.0002588,4]
[366697951,1750415480721,-1038.4,0.0002588,4]
[366697952,1750415480732,-500.0,0.0002588,4]
[366697953,1750415480741,-291.649722,0.00025881,7]
[366697954,1750415480752,-420.090882,0.00025881,7]
[366697955,1750415480762,-420.090882,0.00025881,7]
[366697956,1750415480772,-225.089144,0.00025881,7]
[366697957,1750415480783,-225.089144,0.00025881,7]
[366697958,1750415480793,-151.0,0.00025881,7]
[366697959,1750415480803,-151.0,0.00025881,7]
[366697960,1750415480813,-2674.385682,0.00025881,7]
[366697961,1750415480822,-2674.385682,0.00025881,7]
[366697962,1750415480833,-398.851022,0.00025881,7]
[366697963,1750415480843,-398.851022,0.00025881,7]
[366697964,1750415480853,-151.0,0.00025881,7]
[366697965,1750415480865,-151.0,0.00025881,7]
[366697966,1750415480877,-151.0,0.00025881,7]
[366697967,1750415480887,-151.0,0.00025881,7]
[366697968,1750415480899,-151.0,0.00025881,7]
[366697969,1750415480912,-151.0,0.00025881,7]
[366697970,1750415480924,-205.587972,0.00025881,7]
[366697971,1750415480933,-205.587972,0.00025881,7]
[366697972,1750415480947,-492.677088,0.00025881,7]
[366697973,1750415480962,-492.677088,0.00025881,7]
[366697974,1750415480972,-3374.102372,0.00025881,7]
[366697975,1750415480982,-3374.102372,0.00025881,7]
[366697976,1750415480993,-370.729428,0.00025881,7]
[366697977,1750415481003,-370.729428,0.00025881,7]
[366697978,1750415481014,-151.0,0.00025882,7]
[366697979,1750415481024,-151.0,0.00025882,7]
[366697980,1750415481034,-351.172876,0.00025882,7]
[366697981,1750415481044,-351.172876,0.00025882,7]
[366697982,1750415481054,-274.173819,0.00025882,7]
[366697983,1750415481064,-274.173819,0.00025882,7]
[366697984,1750415481074,-2551.478634,0.00025882,7]
[366697985,1750415481084,-2551.478634,0.00025882,7]
[366697986,1750415481096,-340.54121,0.00025882,7]
[366697987,1750415481108,-340.54121,0.00025882,7]
[366697988,1750415481119,-174.163115,0.00025882,7]
[366697989,1750415481130,-174.163115,0.00025882,7]
[366697990,1750415481140,-152.41121,0.00025882,7]
[366697991,1750415481151,-152.41121,0.00025882,7]
[366697992,1750415481161,-151.0,0.00025882,7]
[366697993,1750415481173,-807.151368,0.00025882,7]
[366697994,1750415481184,-807.151368,0.00025882,7]
[366697995,1750415481195,-414.404727,0.00025882,7]
[366697996,1750415481205,-414.404727,0.00025882,7]